bitfinex/quotes_SOLUSD_20240711
["timestamp","ask_amount","ask_price","bid_price","bid_amount"]
[1720698283392,50.62500257,143.92,143.86,6.9507]
[1720698283393,5.06500257,143.92,143.86,6.9507]
[1720698283607,2.288175,143.92,143.86,1.38998839]
[1720698283905,9.236475,143.92,143.87,17.3764]
[1720698284104,9.236475,143.92,143.87,24.3268]
[1720698284283,2.288175,143.92,143.88,6.95]
[1720698284484,2.288175,143.92,143.88,8.33992894]
[1720698284485,11.39,143.9,143.88,8.33992894]
[1720698284689,11.39,143.9,143.87,25.71678469]
[1720698285097,11.39,143.91,143.88,6.95]
[1720698285291,11.39,143.9,143.87,24.3269]
[1720698285607,11.39,143.89,143.87,17.3764]
[1720698286706,13.678175,143.92,143.87,24.327]
[1720698286707,9.236575,143.92,143.87,24.327]
[1720698286887,2.288175,143.92,143.88,6.95]
[1720698287089,2.288175,143.92,143.88,8.33995651]
[1720698287300,2.288175,143.92,143.87,24.3269]
[1720698289217,9.236575,143.92,143.87,24.3269]
[1720698291908,2.288175,143.92,143.87,17.3764]
[1720698292114,2.288175,143.92,143.88,6.9501]
[1720698293112,2.288175,143.92,143.88,8.33999421]
[1720698293411,2.288175,143.92,143.88,6.9501]
[1720698293611,9.236475,143.92,143.87,24.327]
[1720698296701,2.288175,143.92,143.88,8.33998042]
[1720698296909,2.288175,143.92,143.89,6.9496]
[1720698297211,2.288175,143.92,143.9,6.9492]
[1720698297598,2.288175,143.92,143.89,24.3237]
[1720698299202,2.288175,143.92,143.89,17.3742]
[1720698299514,2.288175,143.92,143.89,18.76395919]
[1720698300498,2.288175,143.92,143.89,17.3742]
[1720698300698,2.288175,143.92,143.89,25.71356006]
[1720698301302,2.288175,143.92,143.9,1.38975187]
[1720698301699,2.288175,143.92,143.89,24.3238]
[1720698302194,2.288175,143.92,143.9,8.33882134]
[1720698302399,2.288175,143.92,143.91,6.9487]
[1720698302599,2.288175,143.92,143.91,24.3206]
[1720698306833,13.668175,143.92,143.9,6.949]
[1720698307423,13.668175,143.92,143.88,39.2935]
[1720698307424,11.38,143.91,143.89,6.9496]
[1720698308001,11.38,143.91,143.88,17.3743]
[1720698308199,11.38,143.89,143.88,17.3743]
[1720698308430,11.38,143.89,143.87,6.9505]
[1720698308728,11.38,143.88,143.87,6.9505]
[1720698309497,11.38,143.88,143.85,17.3782]
[1720698309822,11.38,143.86,143.83,6.9525]
[1720698310129,11.38,143.85,143.84,6.9518]
[1720698310805,11.38,143.86,143.85,6.9516]
[1720698311510,9.236875,143.92,143.87,6.9505]
[1720698311712,11.38,143.89,143.87,6.9505]
[1720698312028,11.38,143.89,143.88,6.9501]
[1720698312205,11.38,143.9,143.88,6.9501]
[1720698312411,11.38,143.9,143.87,8.34046021]
[1720698312621,11.38,143.89,143.87,8.34046021]
[1720698313011,11.38,143.89,143.88,6.9502]
[1720698313229,11.38,143.91,143.89,6.9497]
[1720698313409,2.288175,143.92,143.9,6.9492]
[1720698313613,13.668175,143.92,143.9,6.9492]
[1720698313807,13.668175,143.92,143.89,8.33946167]
[1720698314008,11.38,143.91,143.89,8.33946167]
[1720698315909,13.668175,143.92,143.89,8.33946167]
[1720698316102,13.668175,143.92,143.89,6.9496]
[1720698316315,13.668175,143.92,143.9,8.33868495]
[1720698316611,2.288175,143.92,143.91,6.9487]
[1720698319629,2.288175,143.92,143.9,25.71148495]
[1720698319808,11.38,143.91,143.9,17.3727]
[1720698320741,2.288175,143.92,143.91,6.9487]
[1720698325527,2.288175,143.92,143.91,18.3287]
[1720698327822,2.288175,143.92,143.91,63.3287]
[1720698328320,2.288175,143.92,143.91,69.6778]
[1720698329016,2.288175,143.92,143.91,69.8478]
[1720698329546,2.288175,143.92,143.91,58.4678]
[1720698329716,2.288175,143.92,143.91,69.8478]
[1720698330130,2.288175,143.92,143.91,85.2051]
[1720698330432,2.288175,143.92,143.91,86.59433475]
[1720698330757,2.288175,143.92,143.91,116.59433475]
[1720698331111,0.8479674,143.93,143.92,206.9483]
[1720698331310,0.8479674,143.93,143.92,275.0483]
[1720698331528,0.8479674,143.93,143.92,305.0483]
[1720698332143,0.8479674,143.93,143.92,339.7898]
[1720698332441,58.535492,143.96,143.95,124.3139]
[1720698332637,58.535492,143.96,143.95,201.04283484]
[1720698332849,58.535492,143.96,143.95,212.42283484]
[1720698333210,58.535492,143.96,143.95,101.04283484]
[1720698333415,58.535492,143.96,143.95,201.04283484]
[1720698333731,58.535492,143.96,143.95,212.42283484]
[1720698333936,58.535492,143.96,143.95,219.08633484]
[1720698334143,35.202292,143.96,143.95,256.02983484]
[1720698334438,18.535692,143.96,143.95,256.02983484]
[1720698335236,3.626392,143.96,143.95,240.01633484]
[1720698337045,5.1486825,143.99,143.98,245.2389]
[1720698337239,5.1486825,143.99,143.98,343.3389]
[1720698337439,8.25e-05,143.99,143.98,343.3389]
[1720698338146,8.25e-05,143.99,143.98,331.9589]
[1720698338938,8.25e-05,143.99,143.98,343.3389]
[1720698340827,8.25e-05,143.99,143.98,347.85310237]
[1720698341625,0.8479674,144.08,143.98,330.06900237]
[1720698341939,0.8479674,144.08,144.07,6.941]
[1720698343125,0.8479674,144.08,144.07,63.491]
[1720698343330,0.8479674,144.08,144.07,52.111]
[1720698343736,0.8479674,144.08,144.07,63.491]
[1720698343931,0.8479674,144.08,144.07,52.111]
[1720698344121,0.8479674,144.08,144.07,63.491]
[1720698344321,0.8479674,144.08,144.07,64.87871844]
[1720698344538,0.8479674,144.08,144.07,65.04871844]
[1720698344718,6.74e-05,144.08,144.07,285.97871844]
[1720698344918,6.74e-05,144.08,144.07,152.281]
[1720698345118,6.74e-05,144.08,144.07,63.661]
[1720698345641,6.74e-05,144.08,144.07,168.17520237]
[1720698345940,6.74e-05,144.08,144.07,68.17520237]
[1720698346126,6.74e-05,144.08,144.07,11.62520237]
[1720698346333,6.74e-05,144.08,144.07,23.00520237]
[1720698346520,6.74e-05,144.08,144.07,23.17520237]
[1720698346720,6.74e-05,144.08,144.07,11.79520237]
[1720698346941,6.74e-05,144.08,144.07,13.18265724]
[1720698347649,6.74e-05,144.08,144.07,69.56265724]
[1720698348632,6.74e-05,144.08,144.07,12.84265724]
[1720698348834,6.74e-05,144.08,144.07,24.22279582]
[1720698349029,6.74e-05,144.08,144.07,12.84279582]
[1720698349846,6.74e-05,144.08,144.07,24.22279582]
[1720698350345,6.74e-05,144.08,144.07,4.51420237]
[1720698351041,6.74e-05,144.08,144.07,5.90222929]
[1720698351339,6.74e-05,144.08,144.07,12.84322929]
[1720698351544,6.74e-05,144.08,144.07,5.90222929]
[1720698351722,6.74e-05,144.08,144.07,4.51420237]
[1720698352323,11.3800674,144.08,144.07,4.51420237]
[1720698352740,11.3800674,144.08,144.01,13.8861]
[1720698352741,13.0018,144.07,144.01,13.8861]
[1720698352936,11.38,144.05,144.02,8.33186173]
[1720698353136,11.38,144.05,144.03,6.9428]
[1720698353662,11.38,144.05,144.03,8.33122322]
[1720698353949,11.38,144.06,144.04,6.9425]
[1720698354129,11.38,144.05,144.04,6.9425]
[1720698354723,11.38,144.06,144.05,6.942]
[1720698355223,11.3800674,144.08,144.06,6.9415]
[1720698355423,11.3800674,144.08,144.07,6.941]
[1720698355847,11.3800674,144.08,144.06,25.68307199]
[1720698356035,6.74e-05,144.08,144.07,6.941]
[1720698357444,6.74e-05,144.08,144.07,36.941]
[1720698358554,6.74e-05,144.08,144.07,81.941]
[1720698361857,6.74e-05,144.08,144.07,82.111]
[1720698362054,6.74e-05,144.08,144.07,82.281]
[1720698362561,6.74e-05,144.08,144.07,85.062595]
[1720698364868,6.74e-05,144.08,144.07,84.892595]
[1720698365073,6.74e-05,144.08,144.07,39.722595]
[1720698365240,6.74e-05,144.08,144.07,8.3288851]
[1720698365441,6.74e-05,144.08,144.07,8.32884549]
[1720698365640,6.74e-05,144.08,144.07,8.3289719]
[1720698366560,6.74e-05,144.08,144.07,38.3289719]
[1720698367365,6.74e-05,144.08,144.07,83.4989719]
[1720698367543,6.74e-05,144.08,144.07,53.4989719]
[1720698367739,6.74e-05,144.08,144.07,53.3289719]
[1720698368069,6.74e-05,144.08,144.07,8.3289719]
[1720698373650,6.74e-05,144.08,144.07,1.3879719]
[1720698374059,6.74e-05,144.08,144.07,8.3289719]
[1720698374251,6.74e-05,144.08,144.06,24.2949]
[1720698374462,15.2524674,144.08,144.06,24.2949]
[1720698374645,15.2524674,144.08,144.04,6.9421]
[1720698374850,15.2524674,144.08,144.05,1.38822562]
[1720698375072,15.2524674,144.08,144.06,6.9411]
[1720698375366,15.2524674,144.08,144.07,6.941]
[1720698375569,15.2524674,144.08,144.05,17.3548]
[1720698375757,15.2524674,144.08,144.06,1.38821466]
[1720698375958,15.2524674,144.08,144.07,6.941]
[1720698378864,6.74e-05,144.08,144.07,52.111]
[1720698379174,6.74e-05,144.08,144.07,8.32875566]
[1720698380251,6.74e-05,144.08,144.07,6.941]
[1720698380659,6.74e-05,144.08,144.07,51.941]
[1720698380859,6.74e-05,144.08,144.07,52.111]
[1720698382481,6.74e-05,144.08,144.07,63.471]
[1720698382653,6.74e-05,144.08,144.07,52.111]
[1720698382859,6.74e-05,144.08,144.07,69.4636]
[1720698383454,6.74e-05,144.08,144.07,69.2936]
[1720698383975,6.74e-05,144.08,144.07,24.2936]
[1720698384574,6.74e-05,144.08,144.07,17.3526]
[1720698384789,6.74e-05,144.08,144.07,24.2936]
[1720698387578,6.74e-05,144.08,144.07,69.2936]
[1720698387765,6.74e-05,144.08,144.07,69.4636]
[1720698388369,6.74e-05,144.08,144.07,24.2936]
[1720698392156,11.3600674,144.08,144.07,24.2936]
[1720698392377,11.3600674,144.08,144.07,17.3526]
[1720698392577,11.3600674,144.08,144.07,24.2936]
[1720698394086,6.74e-05,144.08,144.07,24.2936]
[1720698395792,11.3600674,144.08,144.07,24.2936]
[1720698397180,6.74e-05,144.08,144.07,24.2936]
[1720698400289,6.74e-05,144.08,144.07,25.6814452]
[1720698401289,6.74e-05,144.08,144.07,24.2936]
[1720698402091,6.74e-05,144.08,144.07,69.4636]
[1720698402291,6.74e-05,144.08,144.07,70.68138808]
[1720698402468,6.74e-05,144.08,144.07,24.2936]
[1720698404992,6.74e-05,144.08,144.07,35.8236]
[1720698405197,6.74e-05,144.08,144.07,80.9936]
[1720698406089,6.74e-05,144.08,144.07,180.9936]
[1720698406392,6.74e-05,144.08,144.07,310.9936]
[1720698407294,6.74e-05,144.08,144.07,299.6336]
[1720698409373,6.74e-05,144.09,144.08,6.9405]
[1720698409699,6.74e-05,144.09,144.08,83.66788145]
[1720698410296,6.74e-05,144.09,144.08,95.02788145]
[1720698410997,6.74e-05,144.09,144.08,115.95788145]
[1720698412317,6.74e-05,144.09,144.08,204.59788145]
[1720698412694,6.74e-05,144.09,144.08,215.95788145]
[1720698413196,6.74e-05,144.09,144.08,149.68788145]
[1720698413386,6.74e-05,144.09,144.08,49.68788145]
[1720698414496,6.74e-05,144.09,144.08,50.02788145]
[1720698414982,6.74e-05,144.09,144.08,82.2805]
[1720698415183,6.74e-05,144.09,144.08,93.6405]
[1720698415706,6.74e-05,144.09,144.08,95.02805691]
[1720698415908,6.74e-05,144.09,144.08,83.66805691]
[1720698416291,6.74e-05,144.09,144.08,82.2805]
[1720698416497,6.74e-05,144.09,144.08,83.66804058]
[1720698416907,6.74e-05,144.09,144.08,82.2805]
[1720698418983,6.74e-05,144.09,144.08,95.02803141]
[1720698419187,6.74e-05,144.09,144.08,93.6405]
[1720698419408,6.74e-05,144.09,144.08,106.38805092]
[1720698420005,6.74e-05,144.09,144.08,106.21805092]
[1720698421383,6.74e-05,144.09,144.08,105.0005]
[1720698422799,6.74e-05,144.09,144.08,205.0005]
[1720698426496,6.74e-05,144.09,144.08,225.9305]
[1720698426695,6.74e-05,144.09,144.08,232.4327]
[1720698428620,6.74e-05,144.09,144.08,211.5027]
[1720698429617,6.74e-05,144.09,144.08,232.4327]
[1720698430724,6.74e-05,144.09,144.08,247.4327]
[1720698431218,6.74e-05,144.09,144.08,232.4327]
[1720698433010,6.74e-05,144.09,144.08,247.4327]
[1720698434515,15.6713,144.18,144.14,100.0]
[1720698434814,15.6713,144.18,144.17,35.6368]
[1720698435206,15.6713,144.18,144.17,80.6368]
[1720698435826,15.6713,144.18,144.17,69.2768]
[1720698436204,0.1,144.19,144.18,6.9357]
[1720698436410,27.7665,144.19,144.17,24.2767]
[1720698436631,27.7665,144.19,144.18,6.9357]
[1720698437122,16.4065,144.19,144.18,6.9357]
[1720698437701,27.7665,144.19,144.17,24.2766]
[1720698437908,27.7665,144.19,144.17,17.3406]
[1720698438126,11.36,144.18,144.17,24.2765]
[1720698438931,16.4069,144.17,144.11,11.36]
[1720698439124,11.36,144.15,144.12,1.38743693]
[1720698440237,11.36,144.15,144.11,1.3874759]
[1720698440535,16.4069,144.17,144.12,1.38746161]
[1720698441420,16.4069,144.17,144.13,1.38743153]
[1720698441618,11.36,144.15,144.1,18.61898794]
[1720698441823,11.36,144.15,144.11,1.3874644]
[1720698442641,16.4069,144.17,144.11,1.3874644]
[1720698442938,11.36,144.15,144.11,1.3874644]
[1720698443134,11.36,144.15,144.11,46.3874644]
[1720698445034,11.36,144.16,144.11,46.3874644]
[1720698445216,11.36,144.16,144.11,57.7474644]
[1720698446123,16.4069,144.17,144.11,57.7474644]
[1720698446438,11.36,144.16,144.12,0.17]
[1720698446614,11.36,144.16,144.11,56.36]
[1720698447230,16.4069,144.17,144.12,1.38737087]
[1720698447437,11.36,144.15,144.11,45.0]
[1720698448532,11.36,144.15,144.12,1.38743214]
[1720698449921,11.36,144.16,144.12,1.38743214]
[1720698451736,16.4069,144.17,144.12,1.38743214]
[1720698451940,27.7669,144.17,144.12,12.74743214]
[1720698452132,27.7669,144.17,144.13,1.38727678]
[1720698452320,11.36,144.16,144.13,1.38727678]
[1720698453029,11.36,144.15,144.12,1.38731983]
[1720698454016,11.36,144.15,144.11,45.0]
[1720698454248,11.36,144.15,144.12,1.38743566]
[1720698454425,11.36,144.16,144.12,1.38743566]
[1720698454624,11.36,144.16,144.11,56.36]
[1720698454827,11.36,144.15,144.12,1.38735125]
[1720698455225,11.36,144.15,144.11,45.0]
[1720698456015,11.36,144.15,144.12,1.38749133]
[1720698456416,11.36,144.14,144.12,1.38749133]
[1720698457145,11.36,144.14,144.11,1.38753671]
[1720698459947,11.36,144.15,144.11,1.38753671]
[1720698461747,0.1,144.19,144.13,11.36]
[1720698461926,11.46,144.19,144.14,57.91708874]
[1720698462121,0.1,144.19,144.15,1.38708784]
[1720698462331,11.46,144.19,144.15,1.38708784]
[1720698463026,0.1,144.19,144.15,57.74708784]
[1720698463644,0.1,144.19,144.15,87.74708784]
[1720698464840,11.46,144.19,144.15,76.38708784]
[1720698465242,11.46,144.19,144.15,31.38704303]
[1720698465548,0.1,144.19,144.16,1.38717925]
[1720698465745,0.1,144.19,144.16,31.38717925]
[1720698465746,11.36,144.18,144.16,31.38717925]
[1720698465948,0.1,144.19,144.16,30.0]
[1720698466247,11.36,144.18,144.16,30.0]
[1720698468045,0.1,144.19,144.16,30.0]
[1720698468354,11.36,144.18,144.16,30.0]
[1720698468525,11.36,144.17,144.16,30.0]
[1720698468845,11.36,144.18,144.16,30.0]
[1720698469426,0.1,144.19,144.16,30.0]
[1720698469632,11.36,144.18,144.16,30.0]
[1720698471749,11.36,144.17,144.16,30.0]
[1720698471929,0.1,144.19,144.16,30.0]
[1720698472255,11.36,144.17,144.16,30.0]
[1720698474656,33.9881,144.17,144.16,30.0]
[1720698474859,41.0943,144.17,144.12,30.0]
[1720698475048,11.36,144.13,144.12,30.0]
[1720698475251,11.36,144.13,144.07,25.55832731]
[1720698475446,11.36,144.1,144.07,7.26352731]
[1720698475867,11.36,144.11,144.09,30.0]
[1720698476034,7.1067,144.16,144.11,6.939]
[1720698476357,11.36,144.12,144.11,6.939]
[1720698476562,11.36,144.12,144.1,6.9394]
[1720698476738,11.36,144.11,144.1,6.9394]
[1720698476938,11.36,144.11,144.1,36.9394]
[1720698477965,11.36,144.12,144.1,30.0]
[1720698478139,11.36,144.13,144.11,1.38767066]
[1720698478455,11.36,144.13,144.12,6.9384]
[1720698478658,11.36,144.14,144.13,6.9379]
[1720698479268,11.36,144.14,144.11,30.0]
[1720698479448,11.36,144.13,144.11,30.0]
[1720698480760,11.36,144.12,144.08,1.38772959]
[1720698480941,11.36,144.1,144.09,30.0]
[1720698482157,11.36,144.1,144.07,7.26352731]
[1720698482158,11.36,144.1,144.07,14.20452731]
[1720698482369,11.36,144.09,144.08,30.0]
[1720698483357,11.36,144.09,144.06,6.9413]
[1720698483555,11.36,144.08,144.06,6.9413]
[1720698483936,11.36,144.07,144.02,7.265603]
[1720698484137,11.36,144.07,144.02,18.625603]
[1720698484450,21.6315,144.12,144.03,6.9428]
[1720698484451,11.36,144.04,144.03,6.9428]
[1720698485260,11.36,144.04,144.02,6.9433]
[1720698485559,11.36,144.03,144.02,6.9433]
[1720698485758,15.1102,144.09,144.05,6.9419]
[1720698485958,15.1102,144.09,144.07,6.941]
[1720698486160,15.1102,144.09,144.06,6.9413]
[1720698486467,15.1102,144.09,144.01,6.4407]
[1720698486468,15.1102,144.09,144.01,17.8007]
[1720698486763,11.36,144.06,144.02,1.38829229]
[1720698486972,11.36,144.06,144.02,46.38829229]
[1720698487153,11.36,144.06,144.02,1.38829229]
[1720698487549,11.36,144.06,144.04,6.9421]
[1720698488164,15.1102,144.09,144.05,6.942]
[1720698488341,11.36,144.07,144.06,6.9413]
[1720698488782,11.36,144.07,144.05,6.942]
[1720698489070,11.36,144.06,144.02,1.3882528]
[1720698489242,11.36,144.04,144.02,6.9433]
[1720698489637,11.36,144.04,144.02,6.9431]
[1720698491445,6.9412,144.07,144.01,6.9438]
[1720698491446,11.36,144.03,144.01,6.9438]
[1720698491644,6.9408,144.08,144.0,1.38856743]
[1720698491883,11.36,144.03,143.99,7.26711423]
[1720698492048,11.36,144.02,144.01,6.9434]
[1720698492248,45.44,144.06,144.02,6.9432]
[1720698492571,11.36,144.04,144.03,6.9429]
[1720698493243,11.36,144.04,143.99,11.36]
[1720698493450,15.1102,144.09,144.02,6.9433]
[1720698493451,11.36,144.06,144.02,6.9433]
[1720698493651,11.36,144.03,144.02,6.9433]
[1720698493969,11.36,144.03,143.98,6.041]
[1720698494166,11.36,144.0,143.99,6.9444]
[1720698494351,11.36,144.0,143.97,18.62764564]
[1720698494550,15.9851,144.07,143.98,12.74905796]
[1720698494764,15.9851,144.07,143.99,1.38857373]
[1720698495070,11.36,144.03,144.02,6.9434]
[1720698495954,11.36,144.03,144.01,6.9438]
[1720698496164,11.36,144.02,143.99,1.38857373]
[1720698496380,11.36,144.01,143.97,1.38881785]
[1720698496671,11.36,144.01,144.0,6.9444]
[1720698497650,11.36,144.01,143.96,7.26851231]
[1720698497851,45.44,144.06,143.97,1.38882]
[1720698497852,11.36,144.0,143.97,1.38882]
[1720698498161,11.36,144.01,143.97,1.38882]
[1720698498348,11.36,144.01,144.0,6.9444]
[1720698500287,52.3817,144.06,144.02,6.9434]
[1720698500288,45.44,144.06,144.02,6.9434]
[1720698500579,11.36,144.03,144.02,6.9434]
[1720698501989,11.36,144.03,144.01,6.9438]
[1720698502471,15.9851,144.07,144.02,1.38860424]
[1720698502663,11.36,144.05,144.04,6.9421]
[1720698503173,11.36,144.05,144.03,6.9428]
[1720698503387,11.36,144.04,144.03,6.9428]
[1720698504481,11.36,144.04,144.03,6.9429]
[1720698506483,15.9851,144.07,144.04,6.9424]
[1720698506797,15.1638,144.11,144.02,11.36]
[1720698506962,11.36,144.07,144.03,1.38834438]
[1720698507160,7.1096,144.1,144.05,6.9416]
[1720698507486,7.1096,144.1,144.03,1.38834438]
[1720698507487,11.36,144.06,144.04,6.9423]
[1720698507798,11.36,144.05,144.03,6.9428]
[1720698508162,11.36,144.04,144.03,6.9428]
[1720698508786,11.36,144.04,144.02,6.9433]
[1720698509082,11.36,144.03,144.02,6.9433]
[1720698511876,11.36,144.04,144.03,6.9426]
[1720698512184,15.1638,144.11,144.07,6.9407]
[1720698512365,11.36,144.08,144.07,6.9407]
[1720698512767,15.1638,144.11,144.07,6.9407]
[1720698512981,11.36,144.08,144.07,6.9407]
[1720698513182,11.36,144.08,144.06,6.9413]
[1720698513387,11.36,144.07,144.06,6.9413]
[1720698513794,22.103,144.11,144.06,6.9413]
[1720698513984,11.36,144.07,144.06,6.9413]
[1720698515598,15.1638,144.11,144.03,1.38814943]
[1720698515778,25.59440775,144.15,144.06,11.36]
[1720698516089,11.36,144.11,144.08,6.9404]
[1720698516292,11.36,144.1,144.08,6.9404]
[1720698516680,6.9381,144.13,144.07,6.9408]
[1720698517079,6.9381,144.13,144.08,6.9404]
[1720698517875,7.2778,144.14,144.08,6.9404]
[1720698518080,7.1078,144.14,144.09,6.9399]
[1720698518995,6.9378,144.14,144.09,6.9399]
[1720698519299,22.8612,144.15,144.1,1.38785502]
[1720698519300,16.4435,144.15,144.1,1.38785502]
[1720698519466,16.4435,144.15,144.11,6.9386]
[1720698519672,16.4435,144.15,144.12,6.9385]
[1720698519873,16.4435,144.15,144.11,6.939]
[1720698521500,23.3807,144.15,144.1,6.9395]
[1720698522799,6.9378,144.14,144.09,6.94]
[1720698523199,16.4435,144.15,144.04,0.17]
[1720698523498,23.381,144.15,144.1,6.9394]
[1720698524181,23.3807,144.15,144.1,6.9394]
[1720698525393,6.9377,144.14,144.09,6.9399]
[1720698525579,13.5905,144.14,144.09,6.9399]
[1720698527791,13.5905,144.14,144.1,6.9395]
[1720698527994,6.6528,144.14,144.1,6.9395]
[1720698528683,6.6528,144.14,144.09,6.9399]
[1720698528884,6.6528,144.14,144.1,6.9392]
[1720698529196,16.4435,144.15,144.11,1.38793848]
[1720698529394,16.4435,144.15,144.06,1.38765173]
[1720698529601,16.4435,144.15,144.13,6.938]
[1720698531710,16.4435,144.15,144.09,1.38767032]
[1720698531884,16.4435,144.15,144.1,30.0]
[1720698532202,16.4435,144.15,144.11,1.38757926]
[1720698532387,6.6504,144.17,144.11,1.38757926]
[1720698533277,22.5637,144.19,144.12,30.0]
[1720698533489,15.6284,144.19,144.12,30.0]
[1720698534515,22.5636,144.19,144.12,30.0]
[1720698535291,6.9358,144.18,144.12,30.0]
[1720698535601,22.5639,144.19,144.12,30.0]
[1720698536285,15.6284,144.19,144.13,1.38752153]
[1720698536589,11.34,144.17,144.13,31.38752153]
[1720698537207,11.34,144.18,144.13,42.72752153]
[1720698537394,11.44,144.19,144.14,11.34]
[1720698537591,11.44,144.19,144.15,1.38729374]
[1720698538108,11.44,144.19,144.15,31.38729374]
[1720698538487,0.1,144.19,144.15,30.0]
[1720698538687,11.44,144.19,144.16,1.38718954]
[1720698539609,11.44,144.19,144.15,30.0]
[1720698541396,11.44,144.19,144.15,31.38724064]
[1720698541720,11.34,144.18,144.15,30.0]
[1720698542096,0.1,144.19,144.15,30.0]
[1720698542295,11.44,144.19,144.15,30.0]
[1720698542813,0.1,144.19,144.15,42.72730039]
[1720698543709,11.44,144.19,144.15,30.0]
[1720698544200,0.1,144.19,144.18,11.34]
[1720698545806,0.1,144.19,144.16,1.38690371]
[1720698546007,0.1,144.19,144.17,41.51]
[1720698546219,0.1,144.19,144.18,12.72681015]
[1720698546919,0.1,144.19,144.18,22.99411015]
[1720698547128,0.1,144.19,144.18,34.33411015]
[1720698547714,0.1,144.19,144.18,12.72681015]
[1720698547929,0.1,144.19,144.18,1.38681015]
[1720698548398,0.1,144.19,144.18,12.72681015]
[1720698549016,0.1,144.19,144.18,57.72681015]
[1720698549204,0.1,144.19,144.18,187.89681015]
[1720698549396,0.1,144.19,144.18,88.06681015]
[1720698549594,0.1,144.19,144.18,75.17]
[1720698549797,0.1,144.19,144.18,86.51]
[1720698550017,0.1,144.19,144.18,87.89670484]
[1720698551020,0.1,144.19,144.18,88.06670484]
[1720698551317,0.1,144.19,144.18,86.68]
[1720698551516,0.1,144.19,144.18,88.06647691]
[1720698552118,0.1,144.19,144.18,76.72647691]
[1720698552302,0.8479674,144.22,144.19,123.2532]
[1720698552625,0.8479674,144.22,144.2,92.0863275]
[1720698552826,0.8479674,144.22,144.21,1.38641367]
[1720698553007,0.8479674,144.22,144.21,13.06641367]
[1720698553211,0.1,144.29,144.21,13.06641367]
[1720698553212,0.1,144.29,144.22,16.6409]
[1720698553433,0.1,144.29,144.23,0.17]
[1720698553725,11.34,144.26,144.22,31.38629693]
[1720698554620,11.34,144.25,144.22,1.38629693]
[1720698554826,0.1,144.29,144.22,1.38629693]
[1720698555009,0.27,144.29,144.22,1.38629693]
[1720698555210,11.34,144.26,144.22,1.38629693]
[1720698555520,11.34,144.26,144.22,45.0]
[1720698556106,11.34,144.26,144.23,1.38637564]
[1720698556630,11.34,144.27,144.22,56.34]
[1720698557321,11.34,144.26,144.21,1.55635189]
[1720698557504,11.34,144.24,144.21,1.38635189]
[1720698557711,11.34,144.23,144.18,11.34]
[1720698557927,11.34,144.23,144.18,41.34]
[1720698558423,11.34,144.24,144.19,12.72672685]
[1720698558934,11.34,144.25,144.21,30.0]
[1720698559441,11.34,144.23,144.21,30.0]
[1720698559743,11.34,144.22,144.21,30.0]
[1720698560617,11.34,144.22,144.16,33.7679]
[1720698560821,11.34,144.2,144.17,30.0]
[1720698561424,11.34,144.19,144.17,30.0]
[1720698562017,11.34,144.18,144.13,11.34]
[1720698562218,11.34,144.18,144.14,31.38720709]
[1720698562418,11.34,144.17,144.14,31.38720709]
[1720698562822,11.34,144.19,144.15,1.38725101]
[1720698563463,11.34,144.18,144.15,1.38725101]
[1720698563650,11.34,144.19,144.15,1.38725101]
[1720698563938,11.34,144.2,144.15,12.72725101]
[1720698564122,16.3353,144.25,144.17,11.34]
[1720698564315,16.3353,144.25,144.18,12.72682196]
[1720698564316,11.34,144.22,144.18,12.72682196]
[1720698564513,11.34,144.23,144.18,12.72682196]
[1720698564713,11.34,144.23,144.18,42.72682196]
[1720698564934,11.34,144.23,144.19,11.34]
[1720698565140,11.34,144.23,144.2,1.38669719]